fUST/lending_fUST_20241229
["ID","MTS","AMOUNT","RATE_DAILY","PERIOD"]
[347006011,1735463434923,-275.86106147,9.829e-05,2]
[347006012,1735463434932,-500.0,9.829e-05,2]
[347006013,1735463434942,-500.0,9.829e-05,2]
[347006014,1735463434951,-500.0,9.829e-05,2]
[347006015,1735463434960,-2711.25,9.829e-05,2]
[347006016,1735463434970,-2488.89,9.829e-05,2]
[347006017,1735463434979,-500.0,9.829e-05,2]
[347006018,1735463434988,-500.0,0.00010099,2]
[347006019,1735463434997,-500.0,0.00010099,2]
[347006020,1735463435006,-924.24,0.00010099,2]
[347006021,1735463435015,-500.0,0.00010099,2]
[347006022,1735463435023,-500.0,0.00010099,2]
[347006023,1735463435033,-500.0,0.00010099,2]
[347006024,1735463435042,-234.47,0.00010099,2]
[347006025,1735463435051,-500.0,0.00010099,2]
[347006026,1735463435060,-500.0,0.00010099,2]
[347006027,1735463435069,-752.74,0.00010099,2]
[347006028,1735463435080,-162.28,0.000101,2]
[347006029,1735463435090,-613.47,0.000101,2]
[347006030,1735463435099,-500.0,0.000101,2]
[347006031,1735463435108,-500.0,0.000101,2]
[347006032,1735463435117,-500.0,0.000101,2]
[347006033,1735463435126,-3488.66,0.000101,2]
[347006034,1735463435136,-109.41906146,0.00010101,2]
[347006035,1735463435145,-500.0,0.00010101,2]
[347006036,1735463435154,-500.0,0.00010101,2]
[347006037,1735463435163,-500.0,0.00010101,2]
[347006038,1735463435172,-500.0,0.00010101,2]
[347006039,1735463435181,-500.0,0.00010101,2]
[347006040,1735463435190,-500.0,0.00010101,2]
[347006041,1735463435200,-500.0,0.00010101,2]
[347006042,1735463435209,-500.0,0.00010102,2]
[347006043,1735463435218,-492.15764228,0.00010102,2]
[347006044,1735463435577,-7.84235772,0.00010102,2]
[347006045,1735463435587,-15.65404624,0.00010102,2]
[347006139,1735463452319,-500.0,9.278e-05,2]
[347006140,1735463452329,-500.0,9.278e-05,2]
[347006141,1735463452340,-500.0,9.278e-05,2]
[347006142,1735463452349,-500.0,9.278e-05,2]
[347006143,1735463452358,-500.0,9.278e-05,2]
[347006144,1735463452368,-500.0,9.278e-05,2]
[347006145,1735463452377,-500.90037629,9.278e-05,2]
[347006146,1735463452388,-500.0,9.553e-05,2]
[347006147,1735463452397,-484.34595376,0.00010102,2]
[347006148,1735463452407,-500.0,0.00010102,2]
[347006149,1735463452418,-500.0,0.00010102,2]
[347006150,1735463452428,-506.78,0.00010102,2]
[347006151,1735463452437,-500.0,0.00010102,2]
[347006152,1735463452447,-500.0,0.00010102,2]
[347006153,1735463452457,-500.0,0.00010102,2]
[347006154,1735463452467,-500.0,0.00010102,2]
[347006155,1735463452476,-500.0,0.00010102,2]
[347006156,1735463452486,-500.0,0.00010103,2]
[347006157,1735463452495,-500.0,0.00010103,2]
[347006158,1735463452504,-500.0,0.00010103,2]
[347006159,1735463452513,-500.0,0.00010103,2]
[347006160,1735463452523,-500.0,0.00010103,2]
[347006161,1735463452532,-500.0,0.00010103,2]
[347006162,1735463452541,-500.0,0.00010103,2]
[347006163,1735463452554,-500.0,0.00010103,2]
[347006164,1735463452564,-500.0,0.00010103,2]
[347006165,1735463452573,-500.0,0.00010103,2]
[347006166,1735463452584,-500.0,0.00010103,2]
[347006167,1735463452597,-500.0,0.00010103,2]
[347006168,1735463452607,-500.0,0.00010103,2]
[347006169,1735463452617,-500.0,0.00010103,2]
[347006170,1735463452626,-500.0,0.00010103,2]
[347006171,1735463452636,-468.34824623,0.00010103,2]
[347006172,1735463452645,-500.0,0.00010103,2]
[347006173,1735463452655,-500.0,0.00010103,2]
[347006174,1735463452664,-500.0,0.00010103,2]
[347006175,1735463452673,-500.0,0.00010103,2]
[347006176,1735463452683,-500.0,0.00010103,2]
[347006177,1735463452692,-500.0,0.00010103,2]
[347006178,1735463452701,-500.0,0.00010103,2]
[347006179,1735463452712,-2711.25,0.00010103,2]
[347006180,1735463452721,-2488.89,0.00010103,2]
[347006181,1735463452731,-500.0,0.00010103,2]
[347006182,1735463452740,-420.0,0.00010204,2]
[347006183,1735463452750,-369.91180346,0.00010373,2]
[347006184,1735463452759,-500.0,0.00010373,2]
[347006185,1735463452769,-500.0,0.00010373,2]
[347006186,1735463452778,-500.0,0.00010373,2]
[347006187,1735463452788,-924.24,0.00010373,2]
[347006188,1735463452797,-500.0,0.00010373,2]
[347006189,1735463452806,-500.0,0.00010373,2]
[347006190,1735463452816,-500.0,0.00010373,2]
[347006191,1735463452826,-500.0,0.00010373,2]
[347006192,1735463452836,-500.0,0.00010373,2]
[347006193,1735463452845,-752.74,0.00010373,2]
[347006194,1735463452855,-500.0,0.00010374,2]
[347006195,1735463452864,-500.0,0.00010374,2]
[347006196,1735463452873,-500.0,0.00010374,2]
[347006197,1735463452882,-500.0,0.00010374,2]
[347006198,1735463452892,-500.0,0.00010374,2]
[347006199,1735463452902,-500.0,0.00010374,2]
[347006200,1735463452911,-500.0,0.00010374,2]
[347006201,1735463452921,-500.0,0.00010374,2]
[347006202,1735463452931,-500.0,0.00010374,2]
[347006203,1735463452940,-500.0,0.00010374,2]
[347006204,1735463452949,-500.0,0.00010374,2]
[347006205,1735463452960,-500.0,0.00010374,2]
[347006206,1735463452969,-500.0,0.00010374,2]
[347006207,1735463452978,-500.0,0.00010374,2]
[347006208,1735463452988,-500.0,0.00010374,2]
[347006209,1735463452997,-500.0,0.00010374,2]
[347006210,1735463453007,-500.0,0.00010374,2]
[347006211,1735463453016,-500.0,0.00010374,2]
[347006212,1735463453025,-500.0,0.00010374,2]
[347006213,1735463453035,-500.0,0.00010374,2]
[347006214,1735463453044,-500.0,0.00010374,2]
[347006215,1735463453053,-500.0,0.00010374,2]
[347006216,1735463453063,-500.0,0.00010374,2]
[347006217,1735463453072,-500.0,0.00010374,2]
[347006218,1735463453081,-82.69290369,0.00010374,2]
[347006219,1735463453170,-417.30709631,0.00010374,2]
[347006220,1735463453179,-500.0,0.00010374,2]
[347006221,1735463453189,-3488.66,0.00010374,2]
[347006222,1735463453198,-500.0,0.00010375,2]
[347006223,1735463453207,-500.0,0.00010375,2]
[347006224,1735463453275,-500.0,0.00010375,2]
[347006225,1735463453285,-500.0,0.00010375,2]
[347006226,1735463453294,-500.0,0.00010375,2]
[347006227,1735463453303,-500.0,0.00010375,2]
[347006228,1735463453313,-500.0,0.00010375,2]
[347006229,1735463453322,-500.0,0.00010375,2]
[347006230,1735463453331,-500.0,0.00010375,2]
[347006231,1735463453341,-500.0,0.00010375,2]
[347006232,1735463453350,-500.0,0.00010375,2]
[347006233,1735463453359,-500.0,0.00010375,2]
[347006234,1735463453369,-500.0,0.00010376,2]
[347006235,1735463453378,-500.0,0.00010376,2]
[347006236,1735463453388,-500.0,0.00010376,2]
[347006237,1735463453397,-500.0,0.00010376,2]
[347006238,1735463453406,-500.0,0.00010376,2]
[347006239,1735463453416,-506.78,0.00010376,2]
[347006240,1735463453425,-500.0,0.00010376,2]
[347006241,1735463453434,-500.0,0.00010376,2]
[347006242,1735463453443,-500.0,0.00010376,2]
[347006243,1735463453453,-500.0,0.00010376,2]
[347006244,1735463453462,-500.0,0.00010376,2]
[347006245,1735463453472,-500.0,0.00010377,2]
[347006246,1735463453481,-500.0,0.00010377,2]
[347006247,1735463453491,-500.0,0.00010377,2]
[347006248,1735463453500,-500.0,0.00010377,2]
[347006249,1735463453510,-500.0,0.00010377,2]
[347006250,1735463453519,-500.0,0.00010377,2]
[347006251,1735463453529,-500.0,0.00010377,2]
[347006252,1735463453539,-500.0,0.00010377,2]
[347006253,1735463453552,-500.0,0.00010377,2]
[347006254,1735463453561,-500.0,0.00010377,2]
[347006255,1735463453571,-500.0,0.00010377,2]
[347006256,1735463453580,-500.0,0.00010377,2]
[347006257,1735463453590,-500.0,0.00010377,2]
[347006258,1735463453601,-500.0,0.00010377,2]
[347006259,1735463453610,-500.0,0.00010377,2]
[347006260,1735463453619,-500.0,0.00010377,2]
[347006261,1735463453630,-500.0,0.00010377,2]
[347006262,1735463453640,-500.0,0.00010377,2]
[347006263,1735463453649,-500.0,0.00010377,2]
[347006264,1735463453658,-500.0,0.00010377,2]
[347006265,1735463453668,-500.0,0.00010377,2]
[347006266,1735463453677,-500.0,0.00010377,2]
[347006267,1735463453686,-2711.25,0.00010377,2]
[347006268,1735463453695,-2488.89,0.00010377,2]
[347006269,1735463453704,-500.0,0.00010377,2]
[347006270,1735463453714,-409.29954382,0.00010379,2]
[347006271,1735463453723,-500.44984647,0.00010379,2]
[347006272,1735463453733,-501.17272382,0.00010518,2]
[347006273,1735463453742,-1206.31912822,0.00010618,2]
[347006274,1735463453751,-500.0,0.00010637,2]
[347006275,1735463453761,-500.0,0.00010647,2]
[347006276,1735463453770,-500.0,0.00010647,2]
[347006277,1735463453780,-924.24,0.00010647,2]
[347006278,1735463453789,-558.21,0.00010647,2]
[347006279,1735463453798,-500.0,0.00010647,2]
[347006280,1735463453808,-500.0,0.00010647,2]
[347006281,1735463453817,-500.0,0.00010647,2]
[347006282,1735463453826,-500.0,0.00010647,2]
[347006283,1735463453836,-752.74,0.00010647,2]
[347006284,1735463453845,-500.0,0.00010648,2]
[347006285,1735463453854,-500.0,0.00010648,2]
[347006286,1735463453864,-500.0,0.00010648,2]
[347006287,1735463453873,-500.0,0.00010648,2]
[347006288,1735463453882,-500.0,0.00010648,2]
[347006289,1735463453892,-500.0,0.00010648,2]
[347006290,1735463453901,-500.0,0.00010648,2]
[347006291,1735463453910,-500.0,0.00010648,2]
[347006292,1735463453919,-500.0,0.00010648,2]
[347006293,1735463453929,-500.0,0.00010648,2]
[347006294,1735463453938,-500.0,0.00010648,2]
[347006295,1735463453947,-500.0,0.00010648,2]
[347006296,1735463453958,-500.0,0.00010648,2]
[347006297,1735463453967,-500.0,0.00010648,2]
[347006298,1735463453977,-500.0,0.00010648,2]
[347006299,1735463453986,-500.0,0.00010648,2]
[347006300,1735463453996,-500.0,0.00010648,2]
[347006301,1735463454005,-500.0,0.00010648,2]
[347006302,1735463454015,-500.0,0.00010648,2]
[347006303,1735463454024,-500.0,0.00010648,2]
[347006304,1735463454034,-500.0,0.00010648,2]
[347006305,1735463454044,-3488.66,0.00010648,2]
[347006306,1735463454053,-500.0,0.00010649,2]
[347006307,1735463454063,-500.0,0.00010649,2]
[347006308,1735463454072,-500.0,0.00010649,2]
[347006309,1735463454082,-500.0,0.00010649,2]
[347006310,1735463454092,-500.0,0.00010649,2]
[347006311,1735463454102,-500.0,0.00010649,2]
[347006312,1735463454111,-500.0,0.00010649,2]
[347006313,1735463454121,-500.0,0.00010649,2]
[347006314,1735463454130,-500.0,0.00010649,2]
[347006315,1735463454139,-500.0,0.00010649,2]
[347006316,1735463454149,-500.0,0.00010649,2]
[347006317,1735463454158,-204.44,0.0001065,2]
[347006318,1735463454168,-500.0,0.0001065,2]
[347006319,1735463454177,-500.0,0.0001065,2]
[347006320,1735463454187,-506.78,0.0001065,2]
[347006321,1735463454197,-500.0,0.0001065,2]
[347006322,1735463454206,-500.0,0.0001065,2]
[347006323,1735463454215,-500.0,0.0001065,2]
[347006324,1735463454224,-500.0,0.0001065,2]
[347006325,1735463454234,-500.0,0.0001065,2]
[347006326,1735463454243,-500.0,0.00010651,2]
[347006327,1735463454251,-500.0,0.00010651,2]
[347006328,1735463454260,-500.0,0.00010651,2]
[347006329,1735463454269,-500.0,0.00010651,2]
[347006330,1735463454278,-500.0,0.00010651,2]
[347006331,1735463454287,-500.0,0.00010651,2]
[347006332,1735463454296,-500.0,0.00010651,2]
[347006333,1735463454305,-500.0,0.00010651,2]
[347006334,1735463454314,-500.0,0.00010651,2]
[347006335,1735463454324,-500.0,0.00010651,2]
[347006336,1735463454333,-500.0,0.00010651,2]
[347006337,1735463454394,-500.0,0.00010651,2]
[347006338,1735463454404,-500.0,0.00010651,2]
[347006339,1735463454413,-500.0,0.00010651,2]
[347006340,1735463454423,-500.0,0.00010651,2]
[347006341,1735463454432,-500.0,0.00010651,2]
[347006342,1735463454441,-154.91212019,0.00010651,2]
[347006343,1735463454450,-500.0,0.00010651,2]
[347006344,1735463454459,-2711.25,0.00010651,2]
[347006345,1735463454468,-2488.89,0.00010651,2]
[347006346,1735463454477,-500.0,0.00010651,2]
[347006347,1735463454486,-366.88087208,0.00010763,2]
[347006348,1735463454496,-500.0,0.00010763,2]
[347006349,1735463454505,-174.75017874,0.00010763,2]
[347006350,1735463454514,-161.90497282,0.00010763,2]
[347006351,1735463454523,-500.0,0.00010763,2]
[347006352,1735463454531,-500.0,0.00010921,2]
[347006353,1735463454540,-500.0,0.00010921,2]
[347006354,1735463454552,-924.24,0.00010921,2]
[347006355,1735463454561,-500.0,0.00010921,2]
[347006356,1735463454570,-500.0,0.00010921,2]
[347006357,1735463454579,-500.0,0.00010921,2]
[347006358,1735463454590,-500.0,0.00010921,2]
[347006359,1735463454599,-752.74,0.00010921,2]
[347006360,1735463454609,-500.0,0.00010922,2]
[347006361,1735463454618,-500.0,0.00010922,2]
[347006362,1735463454628,-500.0,0.00010922,2]
[347006363,1735463454638,-500.0,0.00010922,2]
[347006364,1735463454647,-500.0,0.00010922,2]
[347006365,1735463454656,-500.0,0.00010922,2]
[347006366,1735463454666,-500.0,0.00010922,2]
[347006367,1735463454676,-500.0,0.00010922,2]
[347006368,1735463454686,-500.0,0.00010922,2]
[347006369,1735463454695,-500.0,0.00010922,2]
[347006370,1735463454704,-500.0,0.00010922,2]
[347006371,1735463454714,-500.0,0.00010922,2]
[347006372,1735463454723,-500.0,0.00010922,2]
[347006373,1735463454732,-500.0,0.00010922,2]
[347006374,1735463454741,-500.0,0.00010922,2]
[347006375,1735463454750,-500.0,0.00010922,2]
[347006376,1735463454759,-500.0,0.00010922,2]
[347006377,1735463454768,-500.0,0.00010922,2]
[347006378,1735463454777,-3488.66,0.00010922,2]
[347006379,1735463454786,-500.0,0.00010923,2]
[347006380,1735463454796,-500.0,0.00010923,2]
[347006381,1735463454805,-500.0,0.00010923,2]
[347006382,1735463454814,-500.0,0.00010923,2]
[347006383,1735463454824,-500.0,0.00010924,2]
[347006384,1735463454833,-500.0,0.00010924,2]
[347006385,1735463454847,-506.78,0.00010924,2]
[347006386,1735463454856,-185.33377202,0.00010924,2]
[347006387,1735463454866,-500.0,0.00010924,2]
[347006388,1735463454875,-500.0,0.00010924,2]
[347006389,1735463454885,-349.38651464,0.00010924,2]
[347006390,1735463454894,-500.0,0.00010925,2]
[347006391,1735463454903,-500.0,0.00010925,2]
[347006392,1735463454912,-500.0,0.00010925,2]
[347006393,1735463454921,-500.0,0.00010925,2]
[347006394,1735463454930,-500.0,0.00010925,2]
[347006395,1735463454940,-500.0,0.00010925,2]
[347006396,1735463454950,-500.0,0.00010925,2]
[347006397,1735463454959,-500.0,0.00010925,2]
[347006398,1735463454968,-500.0,0.00010925,2]
[347006399,1735463454978,-500.0,0.00010925,2]
[347006400,1735463454988,-500.0,0.00010925,2]
[347006401,1735463454997,-500.0,0.00010925,2]
[347006402,1735463455007,-163.36617262,0.00010925,2]
[347006403,1735463455016,-500.0,0.00010925,2]
[347006404,1735463455025,-2711.25,0.00010925,2]
[347006405,1735463455035,-2488.89,0.00010925,2]
[347006406,1735463455045,-500.0,0.00010925,2]
[347006407,1735463455054,-8955.750936,0.00010959,2]
[347006408,1735463455063,-500.32879532,0.00011185,2]
[347006409,1735463455073,-500.0,0.00011195,2]
[347006410,1735463455082,-500.0,0.00011195,2]
[347006411,1735463455093,-924.24,0.00011195,2]
[347006412,1735463455102,-500.0,0.00011195,2]
[347006413,1735463455111,-500.0,0.00011195,2]
[347006414,1735463455120,-566.25,0.00011195,2]
[347006415,1735463455129,-500.0,0.00011195,2]
[347006416,1735463455139,-752.74,0.00011195,2]
[347006417,1735463455148,-500.0,0.00011196,2]
[347006418,1735463455158,-500.0,0.00011196,2]
[347006419,1735463455168,-500.0,0.00011196,2]
[347006420,1735463455178,-516.59771976,0.00011196,2]
[347006421,1735463455189,-500.0,0.00011196,2]
[347006422,1735463455198,-500.0,0.00011196,2]
[347006423,1735463455207,-500.0,0.00011196,2]
[347006424,1735463455217,-500.0,0.00011196,2]
[347006425,1735463455226,-505.81,0.00011196,2]
[347006426,1735463455236,-500.0,0.00011196,2]
[347006427,1735463455246,-500.0,0.00011196,2]
[347006428,1735463455255,-500.0,0.00011196,2]
[347006429,1735463455265,-500.0,0.00011196,2]
[347006430,1735463455276,-500.0,0.00011196,2]
[347006431,1735463455287,-500.0,0.00011196,2]
[347006432,1735463455297,-3488.66,0.00011196,2]
[347006433,1735463455307,-500.0,0.00011197,2]
[347006434,1735463455316,-500.0,0.00011197,2]
[347006435,1735463455327,-500.0,0.00011198,2]
[347006436,1735463455340,-500.0,0.00011198,2]
[347006437,1735463455350,-506.78,0.00011198,2]
[347006438,1735463455360,-500.0,0.00011198,2]
[347006439,1735463455370,-462.82967174,0.00011198,2]
[347006440,1735463455380,-500.0,0.00011199,2]
[347006441,1735463455439,-500.0,0.00011199,2]
[347006442,1735463455452,-500.0,0.00011199,2]
[347006443,1735463455461,-500.0,0.00011199,2]
[347006444,1735463455471,-500.0,0.00011199,2]
[347006445,1735463455481,-500.0,0.00011199,2]
[347006446,1735463455491,-500.0,0.00011199,2]
[347006447,1735463455500,-310.96142832,0.00011199,2]
[347006448,1735463455510,-199.90688615,0.00011199,2]
[347006449,1735463455519,-500.0,0.00011199,2]
[347006450,1735463455529,-500.0,0.00011199,2]
[347006451,1735463455539,-500.0,0.00011199,2]
[347006452,1735463455549,-2711.25,0.00011199,2]
[347006453,1735463455562,-2488.89,0.00011199,2]
[347006454,1735463455572,-500.0,0.00011199,2]
[347006455,1735463455584,-1000.47495219,0.00011311,2]
[347006456,1735463455594,-574.35562685,0.00011389,2]
[347006457,1735463455605,-500.0,0.00011389,2]
[347006458,1735463455615,-217.60040367,0.00011389,2]
[347006459,1735463455624,-286.91453916,0.00011389,2]
[347006460,1735463455633,-500.0,0.00011389,2]
[347006461,1735463455643,-216.70193414,0.00011469,2]
[347006462,1735463455652,-500.0,0.00011469,2]
[347006463,1735463455662,-924.24,0.00011469,2]
[347006464,1735463455672,-500.0,0.00011469,2]
[347006465,1735463455682,-500.0,0.00011469,2]
[347006466,1735463455691,-500.0,0.00011469,2]
[347006467,1735463455701,-752.74,0.00011469,2]
[347006468,1735463455710,-500.0,0.0001147,2]
[347006469,1735463455720,-500.0,0.0001147,2]
[347006470,1735463455729,-500.0,0.0001147,2]
[347006471,1735463455739,-500.0,0.0001147,2]
[347006472,1735463455749,-500.0,0.0001147,2]
[347006473,1735463455758,-500.0,0.0001147,2]
[347006474,1735463455768,-500.0,0.0001147,2]
[347006475,1735463455778,-500.0,0.0001147,2]
[347006476,1735463455788,-500.0,0.0001147,2]
[347006477,1735463455797,-500.0,0.0001147,2]
[347006478,1735463455807,-500.0,0.0001147,2]
[347006479,1735463455818,-537.73,0.0001147,2]
[347006480,1735463455828,-3488.66,0.0001147,2]
[347006481,1735463455839,-500.0,0.00011472,2]
[347006482,1735463455848,-500.0,0.00011472,2]
[347006483,1735463455857,-506.78,0.00011472,2]
[347006484,1735463455866,-500.0,0.00011472,2]
[347006485,1735463455875,-500.0,0.00011473,2]
[347006486,1735463455885,-500.0,0.00011473,2]
[347006487,1735463455894,-500.0,0.00011473,2]
[347006488,1735463455904,-500.0,0.00011473,2]
[347006489,1735463455913,-500.0,0.00011473,2]
[347006490,1735463455922,-500.0,0.00011473,2]
[347006491,1735463455932,-500.0,0.00011473,2]
[347006492,1735463455942,-500.0,0.00011473,2]
[347006493,1735463455952,-500.0,0.00011473,2]
[347006494,1735463455961,-500.0,0.00011473,2]
[347006495,1735463455971,-2711.25,0.00011473,2]
[347006496,1735463455981,-2488.89,0.00011473,2]
[347006497,1735463455991,-500.0,0.00011473,2]
[347006498,1735463456003,-500.0,0.00011719,2]
[347006499,1735463456013,-500.0,0.00011743,2]
[347006500,1735463456022,-924.24,0.00011743,2]
[347006501,1735463456032,-500.0,0.00011743,2]
[347006502,1735463456042,-500.0,0.00011743,2]
[347006503,1735463456052,-500.0,0.00011743,2]
[347006504,1735463456063,-752.74,0.00011743,2]
[347006505,1735463456072,-500.0,0.00011744,2]
[347006506,1735463456082,-500.0,0.00011744,2]
[347006507,1735463456091,-500.0,0.00011744,2]
[347006508,1735463456100,-199.57246558,0.00011744,2]
[347006509,1735463456110,-500.0,0.00011744,2]
[347006510,1735463456119,-190.49,0.00011744,2]
[347006511,1735463456129,-500.0,0.00011744,2]
[347006512,1735463456139,-500.0,0.00011744,2]
[347006513,1735463456149,-500.0,0.00011744,2]
[347006514,1735463456159,-500.0,0.00011744,2]
[347006515,1735463456168,-3488.66,0.00011744,2]
[347006516,1735463456178,-500.0,0.00011746,2]
[347006517,1735463456187,-500.0,0.00011746,2]
[347006518,1735463456197,-506.78,0.00011746,2]
[347006519,1735463456206,-500.0,0.00011746,2]
[347006520,1735463456216,-500.0,0.00011747,2]
[347006521,1735463456225,-500.0,0.00011747,2]
[347006522,1735463456235,-500.0,0.00011747,2]
[347006523,1735463456245,-500.0,0.00011747,2]
[347006524,1735463456255,-500.0,0.00011747,2]
[347006525,1735463456264,-500.0,0.00011747,2]
[347006526,1735463456273,-312.1280784,0.00011747,2]
[347006527,1735463456283,-500.0,0.00011747,2]
[347006528,1735463456292,-500.0,0.00011747,2]
[347006529,1735463456302,-500.0,0.00011747,2]
[347006530,1735463456312,-2711.25,0.00011747,2]
[347006531,1735463456322,-2488.89,0.00011747,2]
[347006532,1735463456331,-89.04362827,0.00011747,2]
[347006533,1735463456346,-410.95637173,0.00011747,2]
[347006534,1735463456356,-1206.31912822,0.00011783,2]
[347006535,1735463456366,-500.0,0.00011937,2]
[347006536,1735463456375,-500.0,0.00012017,2]
[347006537,1735463456438,-924.24,0.00012017,2]
[347006538,1735463456449,-500.0,0.00012017,2]
[347006539,1735463456459,-429.00247467,0.00012017,2]
[347006540,1735463456469,-500.0,0.00012017,2]
[347006541,1735463456479,-752.74,0.00012017,2]
[347006542,1735463456488,-500.0,0.00012018,2]
[347006543,1735463456498,-500.0,0.00012018,2]
[347006544,1735463456507,-500.0,0.00012018,2]
[347006545,1735463456516,-199.82276817,0.00012018,2]
[347006546,1735463456525,-500.0,0.00012018,2]
[347006547,1735463456535,-533.34,0.00012018,2]
[347006548,1735463456546,-500.0,0.00012018,2]
[347006549,1735463456558,-305.29,0.00012018,2]
[347006550,1735463456567,-3488.66,0.00012018,2]
[347006551,1735463456576,-500.0,0.0001202,2]
[347006552,1735463456586,-500.0,0.0001202,2]
[347006553,1735463456595,-506.78,0.0001202,2]
[347006554,1735463456604,-500.0,0.0001202,2]
[347006555,1735463456614,-380.32209779,0.00012021,2]
[347006556,1735463456625,-500.0,0.00012021,2]
[347006557,1735463456634,-500.0,0.00012021,2]
[347006558,1735463456644,-500.0,0.00012021,2]
[347006559,1735463456653,-500.0,0.00012021,2]
[347006560,1735463456663,-500.0,0.00012021,2]
[347006561,1735463456673,-500.0,0.00012021,2]
[347006562,1735463456682,-500.0,0.00012021,2]
[347006563,1735463456691,-500.0,0.00012021,2]
[347006564,1735463456701,-2711.25,0.00012021,2]
[347006565,1735463456710,-2488.89,0.00012021,2]
[347006566,1735463456720,-150.92,0.00012021,2]
[347006567,1735463456729,-500.0,0.00012291,2]
[347006568,1735463456739,-924.24,0.00012291,2]
[347006569,1735463456750,-500.0,0.00012291,2]
[347006570,1735463456759,-500.0,0.00012291,2]
[347006571,1735463456768,-752.74,0.00012291,2]
[347006572,1735463456778,-500.0,0.00012292,2]
[347006573,1735463456787,-500.0,0.00012292,2]
[347006574,1735463456797,-641.08418121,0.00012292,2]
[347006575,1735463456807,-500.0,0.00012292,2]
[347006576,1735463456817,-0.58081267,0.00012292,2]
[347006577,1735463456829,-499.41918733,0.00012292,2]
[347006578,1735463456839,-3488.66,0.00012292,2]
[347006579,1735463456849,-500.0,0.00012294,2]
[347006580,1735463456858,-500.0,0.00012294,2]
[347006581,1735463456872,-506.78,0.00012294,2]
[347006582,1735463456890,-500.0,0.00012294,2]
[347006583,1735463456905,-500.0,0.00012295,2]
[347006584,1735463456923,-500.0,0.00012295,2]
[347006585,1735463456941,-500.0,0.00012295,2]
[347006586,1735463456959,-500.0,0.00012295,2]
[347006587,1735463456974,-171.26672383,0.00012295,2]
[347006588,1735463456990,-500.0,0.00012295,2]
[347006589,1735463457004,-500.0,0.00012295,2]
[347006590,1735463457021,-500.0,0.00012295,2]
[347006591,1735463457039,-2711.25,0.00012295,2]
[347006592,1735463457057,-2488.89,0.00012295,2]
[347006593,1735463457069,-500.0,0.00012565,2]
[347006594,1735463457088,-924.24,0.00012565,2]
[347006595,1735463457102,-500.0,0.00012565,2]
[347006596,1735463457118,-513.43,0.00012565,2]
[347006597,1735463457130,-752.74,0.00012565,2]
[347006598,1735463457145,-500.0,0.00012566,2]
[347006599,1735463457159,-500.0,0.00012566,2]
[347006600,1735463457173,-500.0,0.00012566,2]
[347006601,1735463457188,-547.47,0.00012566,2]
[347006602,1735463457201,-3488.66,0.00012566,2]
[347006603,1735463457216,-500.0,0.00012568,2]